[Event "St Kilda East and Caulfield Chess Club T3 2025 Under 1600 Mondays"]
[Site "St Kilda East, Australia"]
[Date "2025.08.18"]
[Round "4.4"]
[White "Budianto, Youshan"]
[Black "Gordon, Samuel"]
[Result "1-0"]
[TimeControl "60 minutes per player per game plus 10 secionds per move from move one"]
[WhiteElo "1032"]
[BlackElo "526"]

1. e4 {[%clk 01:00:08]} {[%emt 00:00:02]} e5 {[%clk 01:00:03]} {[%emt
00:00:07]} 2. Nf3 {[%clk 01:00:12]} {[%emt 00:00:06]} Nc6 {[%clk 01:00:05]}
{[%emt 00:00:08]} 3. Bc4 {[%clk 01:00:08]} {[%emt 00:00:14]} d6 {[%clk
01:00:00]} {[%emt 00:00:15]} 4. d4 {[%clk 00:59:50]} {[%emt 00:00:28]} Bg4
{[%clk 00:59:38]} {[%emt 00:00:32]} 5. Bxf7+ {[%clk 00:58:52]} {[%emt
00:01:08]} Kxf7 {[%clk 00:59:28]} {[%emt 00:00:20]} 6. Ng5+ {[%clk 00:58:40]}
{[%emt 00:00:22]} Ke8 {[%clk 00:59:14]} {[%emt 00:00:24]} 7. Qxg4 {[%clk
00:58:37]} {[%emt 00:00:13]} Nxd4 {[%clk 00:59:03]} {[%emt 00:00:21]} 8. Qd1
{[%clk 00:57:38]} {[%emt 00:01:09]} Be7 {[%clk 00:58:49]} {[%emt 00:00:22]} 9.
Nf3 {[%clk 00:57:17]} {[%emt 00:00:32]} Nxf3+ {[%clk 00:58:45]} {[%emt
00:00:14]} 10. Qxf3 {[%clk 00:57:22]} {[%emt 00:00:06]} Nf6 {[%clk 00:58:44]}
{[%emt 00:00:11]} 11. O-O {[%clk 00:57:23]} {[%emt 00:00:09]} Rf8 {[%clk
00:58:44]} {[%emt 00:00:09]} 12. Nc3 {[%clk 00:57:19]} {[%emt 00:00:15]} c6
{[%emt 00:00:47]} 13. Be3 {[%clk 00:56:40]} {[%emt 00:00:45]} Kd7 {[%clk
00:57:29]} {[%emt 00:00:50]} 14. Qh3+ {[%clk 00:55:48]} {[%emt 00:01:03]} Kc7
{[%clk 00:57:25]} {[%emt 00:00:15]} 15. Rad1 {[%clk 00:55:22]} {[%emt
00:00:36]} Qe8 {[%clk 00:57:01]} {[%emt 00:00:33]} 16. b4 {[%clk 00:54:10]}
{[%emt 00:01:23]} d5 {[%clk 00:56:40]} {[%emt 00:00:30]} 17. exd5 {[%clk
00:53:12]} {[%emt 00:01:07]} Bxb4 {[%clk 00:56:35]} {[%emt 00:00:15]} 18. dxc6
{[%clk 00:49:01]} {[%emt 00:04:21]} bxc6 {[%clk 00:55:52]} {[%emt 00:00:52]} 19.
Na4 {[%clk 00:48:11]} {[%emt 00:01:01]} Qg6 {[%clk 00:55:38]} {[%emt 00:00:23]}
20. Nc5 {[%clk 00:47:41]} {[%emt 00:00:40]} Bxc5 {[%clk 00:55:28]} {[%emt
00:00:19]} 21. Bxc5 {[%clk 00:47:37]} {[%emt 00:00:16]} Rfd8 {[%clk 00:55:28]}
{[%emt 00:00:09]} 22. Qe6 {[%clk 00:46:08]} {[%emt 00:01:41]} Rxd1 {[%clk
00:53:19]} {[%emt 00:02:18]} 23. Qxe5+ {[%clk 00:45:41]} {[%emt 00:00:37]} Kb7
{[%clk 00:53:13]} {[%emt 00:00:15]} 24. Rxd1 {[%clk 00:45:45]} {[%emt
00:00:07]} Qxc2 {[%clk 00:52:33]} {[%emt 00:00:48]} 25. Qd4 {[%clk 00:42:46]}
{[%emt 00:03:10]} Re8 {[%clk 00:52:01]} {[%emt 00:00:40]} 26. Qb4+ {[%clk
00:42:12]} {[%emt 00:00:47]} Ka6 {[%clk 00:51:49]} {[%emt 00:00:21]} 27. Rb1
{[%clk 00:41:09]} {[%emt 00:01:13]} Qxb1+ {[%clk 00:50:12]} {[%emt 00:01:47]}
28. Qxb1 {[%clk 00:41:10]} {[%emt 00:00:09]} Re5 {[%clk 00:50:08]} {[%emt
00:00:13]} 29. Bd4 {[%clk 00:41:08]} {[%emt 00:00:13]} Rb5 {[%clk 00:50:09]}
{[%emt 00:00:09]} 30. Qd3 {[%clk 00:40:21]} {[%emt 00:00:57]} Kb7 {[%clk
00:49:51]} {[%emt 00:00:29]} 31. g3 {[%clk 00:40:10]} {[%emt 00:00:20]} Rd5
{[%clk 00:49:52]} {[%emt 00:00:09]} 32. Qb3+ {[%clk 00:40:11]} {[%emt
00:00:10]} Rb5 {[%clk 00:49:45]} {[%emt 00:00:17]} 33. Qf7+ {[%clk 00:40:12]}
{[%emt 00:00:09]} 1-0

[Event "St Kilda East and Caulfield Chess Club T3 2025 Under 1600 Mondays"]
[Site "St Kilda East, Australia"]
[Date "2025.08.18"]
[Round "4.8"]
[White "Salama, John"]
[Black "Feng, Austin"]
[Result "1-0"]
[TimeControl "60 minutes per player per game plus 10 secionds per move from move one"]
[WhiteElo "1296"]
[BlackElo "448"]

1. d4 {[%clk 01:00:06]} {[%emt 00:00:04]} Nf6 {[%clk 01:00:03]} {[%emt
00:00:08]} 2. Nf3 {[%clk 01:00:10]} {[%emt 00:00:06]} g6 {[%clk 01:00:01]}
{[%emt 00:00:12]} 3. e3 {[%clk 01:00:00]} {[%emt 00:00:18]} Bg7 {[%clk
01:00:03]} {[%emt 00:00:09]} 4. Bd3 {[%clk 00:59:37]} {[%emt 00:00:34]} O-O
{[%clk 00:59:52]} {[%emt 00:00:12]} 5. O-O {[%clk 00:59:45]} d6 {[%clk
00:59:41]} {[%emt 00:00:32]} 6. c3 {[%clk 00:56:58]} {[%emt 00:02:57]} Nc6
{[%clk 00:59:36]} {[%emt 00:00:15]} 7. e4 {[%clk 00:56:15]} {[%emt 00:00:53]}
e5 {[%clk 00:58:36]} {[%emt 00:01:11]} 8. d5 {[%clk 00:55:48]} {[%emt
00:00:37]} Ne7 {[%clk 00:57:40]} {[%emt 00:01:05]} 9. h3 {[%clk 00:55:02]}
{[%emt 00:00:57]} c6 {[%clk 00:56:55]} {[%emt 00:00:56]} 10. c4 {[%clk
00:53:30]} {[%emt 00:01:42]} cxd5 {[%clk 00:53:47]} {[%emt 00:03:19]} 11. cxd5
{[%clk 00:53:28]} {[%emt 00:00:11]} Bd7 {[%clk 00:51:16]} {[%emt 00:02:40]} 12.
Be3 {[%clk 00:52:54]} {[%emt 00:00:44]} Qa5 {[%clk 00:49:48]} {[%emt 00:01:39]}
13. Nc3 {[%clk 00:52:21]} {[%emt 00:00:42]} Rac8 {[%clk 00:49:12]} {[%emt
00:00:45]} 14. a3 {[%clk 00:48:04]} {[%emt 00:04:28]} Ba4 {[%clk 00:48:12]}
{[%emt 00:01:10]} 15. Qd2 {[%clk 00:47:26]} {[%emt 00:00:48]} Bb3 {[%clk
00:46:01]} {[%emt 00:02:21]} 16. Nb5 {[%clk 00:42:34]} {[%emt 00:05:02]} Qa6
{[%clk 00:42:55]} {[%emt 00:03:16]} 17. Nc7 {[%clk 00:40:14]} {[%emt 00:02:31]}
Qa4 {[%clk 00:42:01]} {[%emt 00:01:03]} 18. Bb5 {[%clk 00:40:04]} {[%emt
00:00:21]} Qxe4 {[%clk 00:40:12]} {[%emt 00:01:59]} 19. Bd3 {[%clk 00:33:11]}
{[%emt 00:07:04]} Qa4 {[%clk 00:39:46]} {[%emt 00:00:36]} 20. Bb5 {[%clk
00:33:00]} {[%emt 00:00:21]} Ne4 {[%clk 00:38:44]} {[%emt 00:01:13]} 21. Qe1
{[%clk 00:31:43]} {[%emt 00:01:27]} Qc4 {[%clk 00:36:56]} {[%emt 00:01:57]} 22.
Bxc4 {[%clk 00:31:13]} {[%emt 00:00:41]} Bxc4 {[%clk 00:36:56]} {[%emt
00:00:09]} 23. Rc1 {[%clk 00:30:17]} {[%emt 00:01:07]} Rxc7 {[%clk 00:36:19]}
{[%emt 00:00:46]} 24. b3 {[%clk 00:27:22]} {[%emt 00:03:06]} Bxf1 {[%clk
00:35:51]} {[%emt 00:00:35]} 25. Rxc7 {[%clk 00:27:20]} {[%emt 00:00:15]} Bxg2
{[%clk 00:35:19]} {[%emt 00:00:41]} 26. Kxg2 {[%clk 00:26:57]} {[%emt
00:00:32]} Nxd5 {[%clk 00:35:12]} {[%emt 00:00:18]} 27. Rxb7 {[%clk 00:25:50]}
{[%emt 00:01:17]} f5 {[%clk 00:34:45]} {[%emt 00:00:37]} 28. Bxa7 {[%clk
00:23:52]} {[%emt 00:02:09]} Nf4+ {[%clk 00:32:55]} {[%emt 00:01:59]} 29. Kh2
{[%clk 00:21:50]} {[%emt 00:02:09]} d5 {[%clk 00:32:32]} {[%emt 00:00:36]} 30.
Rb8 {[%clk 00:21:15]} {[%emt 00:00:45]} d4 {[%clk 00:32:01]} {[%emt 00:00:41]}
31. Rxf8+ {[%clk 00:21:14]} {[%emt 00:00:12]} Kxf8 {[%clk 00:32:07]} {[%emt
00:00:03]} 32. Qb4+ {[%clk 00:20:40]} {[%emt 00:00:44]} Kg8 {[%clk 00:31:42]}
{[%emt 00:00:35]} 33. Qb8+ {[%clk 00:20:21]} {[%emt 00:00:29]} Bf8 {[%clk
00:31:47]} {[%emt 00:00:05]} 34. Nxe5 {[%clk 00:19:31]} {[%emt 00:01:00]} d3
{[%clk 00:31:40]} {[%emt 00:00:17]} 35. Nd7 {[%clk 00:18:14]} {[%emt 00:01:25]}
Ne6 {[%clk 00:31:25]} {[%emt 00:00:26]} 36. Nxf8 {[%clk 00:17:14]} {[%emt
00:01:10]} Nxf8 {[%clk 00:31:01]} {[%emt 00:00:34]} 37. Qd8 {[%clk 00:16:57]}
{[%emt 00:00:27]} d2 {[%clk 00:30:53]} {[%emt 00:00:19]} 38. Be3 {[%clk
00:16:50]} {[%emt 00:00:15]} 1-0

[Event "St Kilda East and Caulfield Chess Club T3 2025 Under 1600 Mondays"]
[Site "St Kilda East, Australia"]
[Date "2025.08.18"]
[Round "4.1"]
[White "Nash, Paul"]
[Black "O'Connor, Alistair"]
[Result "0-1"]
[TimeControl "60 minutes per player per game plus 10 secionds per move from move one"]
[WhiteElo "1009"]
[BlackElo "1053"]

1. e4 {[%clk 01:00:06]} {[%emt 00:00:02]} e6 {[%clk 01:00:02]} {[%emt
00:00:09]} 2. d4 {[%clk 01:00:09]} {[%emt 00:00:08]} d5 {[%clk 01:00:03]}
{[%emt 00:00:09]} 3. e5 {[%clk 01:00:09]} {[%emt 00:00:11]} Bd7 {[%clk
00:59:55]} {[%emt 00:00:17]} 4. Nf3 {[%clk 00:59:59]} {[%emt 00:00:20]} a6
{[%clk 00:59:56]} {[%emt 00:00:09]} 5. a4 {[%clk 00:59:41]} {[%emt 00:00:28]}
c5 {[%clk 00:59:47]} {[%emt 00:00:19]} 6. c3 {[%clk 00:58:51]} {[%emt
00:00:59]} Nc6 {[%clk 00:59:39]} {[%emt 00:00:17]} 7. Bd3 {[%clk 00:58:03]}
{[%emt 00:00:58]} Nge7 {[%clk 00:59:04]} {[%emt 00:00:45]} 8. Bg5 {[%clk
00:56:12]} {[%emt 00:02:01]} Qb6 {[%clk 00:59:02]} {[%emt 00:00:13]} 9. dxc5
{[%clk 00:54:20]} {[%emt 00:02:02]} Qxc5 {[%clk 00:57:50]} {[%emt 00:01:22]} 10.
Be3 {[%clk 00:52:00]} {[%emt 00:02:29]} Qa5 {[%clk 00:57:40]} {[%emt 00:00:20]}
11. b4 {[%clk 00:51:15]} {[%emt 00:00:53]} Qc7 {[%clk 00:57:23]} {[%emt
00:00:29]} 12. a5 {[%clk 00:51:05]} {[%emt 00:00:20]} Nxe5 {[%clk 00:57:02]}
{[%emt 00:00:32]} 13. Nxe5 {[%clk 00:50:43]} {[%emt 00:00:32]} Qxe5 {[%clk
00:56:56]} {[%emt 00:00:16]} 14. O-O {[%clk 00:44:50]} {[%emt 00:06:03]} Nf5
{[%clk 00:56:28]} {[%emt 00:00:38]} 15. Bxf5 {[%clk 00:42:29]} {[%emt
00:02:31]} Qxf5 {[%clk 00:56:20]} {[%emt 00:00:16]} 16. Nd2 {[%clk 00:41:33]}
{[%emt 00:01:09]} Bd6 {[%clk 00:55:50]} {[%emt 00:00:40]} 17. Nf3 {[%clk
00:40:11]} {[%emt 00:01:32]} O-O {[%clk 00:55:36]} {[%emt 00:00:24]} 18. c4
{[%clk 00:39:51]} {[%emt 00:00:31]} Bc6 {[%clk 00:54:35]} {[%emt 00:01:10]} 19.
Qd4 {[%clk 00:34:21]} {[%emt 00:05:40]} e5 {[%clk 00:51:57]} {[%emt 00:02:47]}
20. Qc3 {[%clk 00:28:09]} {[%emt 00:06:20]} d4 {[%clk 00:51:58]} {[%emt
00:00:12]} 21. Bxd4 {[%clk 00:28:07]} {[%emt 00:00:12]} exd4 {[%clk 00:51:47]}
{[%emt 00:00:21]} 22. Nxd4 {[%clk 00:27:43]} {[%emt 00:00:35]} Qh5 {[%clk
00:51:36]} {[%emt 00:00:20]} 23. f4 {[%clk 00:26:15]} {[%emt 00:01:38]} Rfe8
{[%clk 00:48:44]} {[%emt 00:03:02]} 24. Nxc6 {[%clk 00:25:27]} {[%emt
00:00:58]} bxc6 {[%clk 00:48:37]} {[%emt 00:00:17]} 25. Rae1 {[%clk 00:23:10]}
{[%emt 00:02:28]} Rxe1 {[%clk 00:47:07]} {[%emt 00:01:40]} 26. Rxe1 {[%clk
00:23:08]} {[%emt 00:00:11]} Bxf4 {[%clk 00:47:08]} {[%emt 00:00:07]} 27. g3
{[%clk 00:14:40]} {[%emt 00:08:40]} Qg5 {[%clk 00:47:07]} {[%emt 00:00:10]} 28.
Qf3 {[%clk 00:14:07]} {[%emt 00:00:44]} Bd2 {[%clk 00:41:41]} {[%emt 00:05:37]}
29. Qxc6 {[%clk 00:13:19]} {[%emt 00:00:58]} Rf8 {[%clk 00:41:35]} {[%emt
00:00:16]} 30. Re8 {[%clk 00:10:00]} {[%emt 00:03:29]} Bxb4 {[%clk 00:41:33]}
{[%emt 00:00:12]} 31. Rxf8+ {[%clk 00:09:51]} {[%emt 00:00:19]} Bxf8 {[%clk
00:41:31]} {[%emt 00:00:12]} 32. Qxa6 {[%clk 00:07:05]} {[%emt 00:02:57]} g6
{[%clk 00:38:55]} {[%emt 00:02:45]} 33. Qa8 {[%clk 00:06:45]} {[%emt 00:00:30]}
Kg7 {[%clk 00:38:16]} {[%emt 00:00:49]} 34. a6 {[%clk 00:06:36]} {[%emt
00:00:19]} Bc5+ {[%clk 00:37:59]} {[%emt 00:00:26]} 35. Kg2 {[%clk 00:06:31]}
{[%emt 00:00:16]} Qd2+ {[%clk 00:37:56]} {[%emt 00:00:10]} 36. Kh3 {[%clk
00:06:31]} {[%emt 00:00:12]} Qd4 {[%clk 00:37:50]} {[%emt 00:00:16]} 37. Qc8
{[%clk 00:05:51]} {[%emt 00:00:50]} h5 {[%clk 00:37:10]} {[%emt 00:00:50]} 38.
Kg2 {[%clk 00:04:31]} {[%emt 00:01:30]} Qf2+ {[%clk 00:37:04]} {[%emt
00:00:15]} 39. Kh3 {[%clk 00:04:32]} {[%emt 00:00:09]} Qf1+ {[%clk 00:36:54]}
{[%emt 00:00:20]} 40. Kh4 {[%clk 00:04:24]} {[%emt 00:00:19]} Be7# {[%clk
00:36:50]} {[%emt 00:00:13]} 0-1